[Event "Early-Titled-Tuesday-Blitz-June-18-2024"]
[Site "Chess.com"]
[Date "2024.06.18"]
[Round "9"]
[White "aot317"]
[Black "bubeliang"]
[Result "0-1"]
[WhiteElo "2528"]
[BlackElo "2777"]
[TimeControl "180+1"]
[EndTime "9:49:51 PDT"]
[Termination "bubeliang won by checkmate"]

1. d4 {[%clk 0:02:57.7]} 1... g6 {[%clk 0:02:48.4]} 2. e4 {[%clk 0:02:57.2]}
2... Bg7 {[%clk 0:02:48.5]} 3. Nc3 {[%clk 0:02:57.9]} 3... c6 {[%clk 0:02:49.4]}
4. Be3 {[%clk 0:02:58.5]} 4... d5 {[%clk 0:02:50.3]} 5. e5 {[%clk 0:02:54.4]}
5... h5 {[%clk 0:02:47.6]} 6. Bd3 {[%clk 0:02:47.4]} 6... Nh6 {[%clk 0:02:45.7]}
7. Nf3 {[%clk 0:02:44.8]} 7... Nf5 {[%clk 0:02:41.6]} 8. Qd2 {[%clk 0:02:43.9]}
8... Na6 {[%clk 0:02:22.7]} 9. O-O-O {[%clk 0:02:40.1]} 9... b5 {[%clk 0:02:18]}
10. Bg5 {[%clk 0:02:26.8]} 10... Qa5 {[%clk 0:02:09.5]} 11. Kb1 {[%clk
0:02:21.8]} 11... Be6 {[%clk 0:01:59.5]} 12. h3 {[%clk 0:02:06]} 12... h4 {[%clk
0:01:48.8]} 13. Rhe1 {[%clk 0:01:58]} 13... Nb4 {[%clk 0:01:46.1]} 14. Bf1
{[%clk 0:01:55]} 14... Rb8 {[%clk 0:01:27.4]} 15. a3 {[%clk 0:01:52.4]} 15...
Na6 {[%clk 0:01:26.8]} 16. Ne2 {[%clk 0:01:38.4]} 16... b4 {[%clk 0:01:19.5]}
17. Nc1 {[%clk 0:01:37.9]} 17... Qa4 {[%clk 0:01:10.3]} 18. axb4 {[%clk
0:01:25.2]} 18... Nxb4 {[%clk 0:01:08]} 19. c3 {[%clk 0:01:18.5]} 19... Na6
{[%clk 0:00:31.6]} 20. Qc2 {[%clk 0:01:18]} 20... Qa5 {[%clk 0:00:30]} 21. Bd3
{[%clk 0:01:01.8]} 21... O-O {[%clk 0:00:28.5]} 22. Nb3 {[%clk 0:00:58.4]} 22...
Qb6 {[%clk 0:00:13.5]} 23. Bxa6 {[%clk 0:00:54.1]} 23... Qxa6 {[%clk 0:00:14]}
24. Nc5 {[%clk 0:00:54.4]} 24... Qc8 {[%clk 0:00:14.6]} 25. Nxe6 {[%clk
0:00:52.7]} 25... Qxe6 {[%clk 0:00:15.5]} 26. Nxh4 {[%clk 0:00:46.2]} 26... Nxh4
{[%clk 0:00:14.6]} 27. Bxh4 {[%clk 0:00:47.1]} 27... Rb7 {[%clk 0:00:14.7]} 28.
Re2 {[%clk 0:00:42]} 28... Rfb8 {[%clk 0:00:14.9]} 29. Qa4 {[%clk 0:00:42.1]}
29... Qf5+ {[%clk 0:00:11.5]} 30. Ka2 {[%clk 0:00:20.7]} 30... c5 {[%clk
0:00:12]} 31. dxc5 {[%clk 0:00:16.1]} 31... Qe6 {[%clk 0:00:12.6]} 32. Rd4
{[%clk 0:00:14.6]} 32... Bxe5 {[%clk 0:00:10]} 33. f4 {[%clk 0:00:13.8]} 33...
Bxd4 {[%clk 0:00:03.4]} 34. Rxe6 {[%clk 0:00:13.5]} 34... Rxb2+ {[%clk 0:00:04]}
35. Ka3 {[%clk 0:00:13.9]} 35... Bxc5+ {[%clk 0:00:04.1]} 36. Qb4 {[%clk
0:00:13.1]} 36... Bxb4+ {[%clk 0:00:03.5]} 37. Kxb2 {[%clk 0:00:13.5]} 37...
Bd6+ {[%clk 0:00:03.3]} 38. Kc2 {[%clk 0:00:13.8]} 38... fxe6 {[%clk 0:00:03.6]}
39. g3 {[%clk 0:00:13.4]} 39... Kf7 {[%clk 0:00:04]} 40. Kd3 {[%clk 0:00:13.9]}
40... Rc8 {[%clk 0:00:04.1]} 41. Bg5 {[%clk 0:00:13.8]} 41... a5 {[%clk
0:00:04.7]} 42. g4 {[%clk 0:00:14.2]} 42... a4 {[%clk 0:00:05.4]} 43. Kc2 {[%clk
0:00:14.8]} 43... a3 {[%clk 0:00:06.1]} 44. Kb3 {[%clk 0:00:15.4]} 44... Rb8+
{[%clk 0:00:05.9]} 45. Ka2 {[%clk 0:00:15.3]} 45... Rb2+ {[%clk 0:00:06.6]} 46.
Ka1 {[%clk 0:00:16]} 46... Rh2 {[%clk 0:00:07.5]} 47. h4 {[%clk 0:00:16]} 47...
e5 {[%clk 0:00:06.5]} 48. f5 {[%clk 0:00:15.7]} 48... gxf5 {[%clk 0:00:06.6]}
49. gxf5 {[%clk 0:00:16.6]} 49... e4 {[%clk 0:00:07.5]} 50. Kb1 {[%clk
0:00:16.4]} 50... a2+ {[%clk 0:00:07.1]} 51. Ka1 {[%clk 0:00:16.5]} 51... Be5
{[%clk 0:00:07.5]} 52. Bd2 {[%clk 0:00:15.6]} 52... Rxd2 {[%clk 0:00:07.7]} 53.
f6 {[%clk 0:00:16.2]} 53... exf6 {[%clk 0:00:07.5]} 54. h5 {[%clk 0:00:16.3]}
54... Rh2 {[%clk 0:00:07.7]} 55. h6 {[%clk 0:00:16.7]} 55... Rxh6 {[%clk
0:00:07.6]} 56. Kxa2 {[%clk 0:00:17.3]} 56... Rh3 {[%clk 0:00:08.5]} 57. Kb3
{[%clk 0:00:17.5]} 57... Rxc3+ {[%clk 0:00:08.8]} 58. Kb4 {[%clk 0:00:18.3]}
58... Ke6 {[%clk 0:00:09.7]} 59. Kb5 {[%clk 0:00:18.7]} 59... Kf5 {[%clk
0:00:10.6]} 60. Kb4 {[%clk 0:00:19.3]} 60... Kg4 {[%clk 0:00:11.5]} 61. Kb5
{[%clk 0:00:20]} 61... Kg3 {[%clk 0:00:12.4]} 62. Kb4 {[%clk 0:00:20.4]} 62...
Kg2 {[%clk 0:00:13.3]} 63. Ka4 {[%clk 0:00:21.1]} 63... Kg1 {[%clk 0:00:14.2]}
64. Ka5 {[%clk 0:00:21.8]} 64... f5 {[%clk 0:00:15.1]} 65. Kb6 {[%clk
0:00:22.5]} 65... Kh2 {[%clk 0:00:16]} 66. Ka7 {[%clk 0:00:23.2]} 66... Kh3
{[%clk 0:00:16.9]} 67. Ka8 {[%clk 0:00:23.9]} 67... Kh4 {[%clk 0:00:17.8]} 68.
Kb7 {[%clk 0:00:24.6]} 68... Kh5 {[%clk 0:00:18.7]} 69. Ka7 {[%clk 0:00:25.2]}
69... Kh6 {[%clk 0:00:19.6]} 70. Kb6 {[%clk 0:00:25.9]} 70... Kh7 {[%clk
0:00:20.5]} 71. Ka5 {[%clk 0:00:26.6]} 71... Kh8 {[%clk 0:00:21.4]} 72. Kb4
{[%clk 0:00:27.3]} 72... Kg8 {[%clk 0:00:22.3]} 73. Kb5 {[%clk 0:00:28]} 73...
Kf8 {[%clk 0:00:23.2]} 74. Ka6 {[%clk 0:00:28.7]} 74... Ke8 {[%clk 0:00:24.1]}
75. Kb7 {[%clk 0:00:29.4]} 75... Kd8 {[%clk 0:00:25]} 76. Ka8 {[%clk 0:00:30.1]}
76... Kd7 {[%clk 0:00:25.9]} 77. Ka7 {[%clk 0:00:30.8]} 77... f4 {[%clk
0:00:26.8]} 78. Ka6 {[%clk 0:00:31.5]} 78... Ke6 {[%clk 0:00:27.7]} 79. Kb5
{[%clk 0:00:32.2]} 79... Kf5 {[%clk 0:00:28.6]} 80. Ka4 {[%clk 0:00:33.1]} 80...
Kg4 {[%clk 0:00:29.5]} 81. Kb4 {[%clk 0:00:34]} 81... Kh3 {[%clk 0:00:30.4]} 82.
Ka5 {[%clk 0:00:34.9]} 82... Kh2 {[%clk 0:00:30.7]} 83. Kb5 {[%clk 0:00:35.8]}
83... Kh1 {[%clk 0:00:31.6]} 84. Kb6 {[%clk 0:00:36.7]} 84... Kg1 {[%clk
0:00:32.5]} 85. Kb7 {[%clk 0:00:37.6]} 85... Kg2 {[%clk 0:00:31.6]} 86. Ka8
{[%clk 0:00:38.5]} 86... Kg3 {[%clk 0:00:32.5]} 87. Ka7 {[%clk 0:00:39.4]} 87...
Kh4 {[%clk 0:00:33.4]} 88. Ka6 {[%clk 0:00:40.3]} 88... f3 {[%clk 0:00:34.3]}
89. Ka5 {[%clk 0:00:41.2]} 89... Kh5 {[%clk 0:00:35.2]} 90. Kb6 {[%clk
0:00:42.1]} 90... Kh6 {[%clk 0:00:36.1]} 91. Kb5 {[%clk 0:00:43]} 91... Kh7
{[%clk 0:00:34.8]} 92. Kb4 {[%clk 0:00:43.9]} 92... Kh8 {[%clk 0:00:35.2]} 93.
Ka4 {[%clk 0:00:44.8]} 93... Kg8 {[%clk 0:00:36.1]} 94. Ka5 {[%clk 0:00:45.7]}
94... Kf8 {[%clk 0:00:37]} 95. Kb6 {[%clk 0:00:46.6]} 95... Kf7 {[%clk
0:00:37.7]} 96. Kb7 {[%clk 0:00:47.5]} 96... Kf6 {[%clk 0:00:38]} 97. Ka8 {[%clk
0:00:48.4]} 97... Kf5 {[%clk 0:00:38.9]} 98. Kb7 {[%clk 0:00:49.3]} 98... e3
{[%clk 0:00:39.8]} 99. Ka7 {[%clk 0:00:50.2]} 99... Ke6 {[%clk 0:00:40.7]} 100.
Ka6 {[%clk 0:00:51.1]} 100... Ke7 {[%clk 0:00:41.6]} 101. Kb5 {[%clk 0:00:52]}
101... Ke8 {[%clk 0:00:42.5]} 102. Ka5 {[%clk 0:00:52.9]} 102... Kd8 {[%clk
0:00:43.1]} 103. Kb6 {[%clk 0:00:53.8]} 103... Kd7 {[%clk 0:00:43.7]} 104. Kb5
{[%clk 0:00:54.7]} 104... Kd6 {[%clk 0:00:44.6]} 105. Kb4 {[%clk 0:00:55.6]}
105... d4 {[%clk 0:00:45.5]} 106. Ka4 {[%clk 0:00:56.5]} 106... Bg7 {[%clk
0:00:46.4]} 107. Ka5 {[%clk 0:00:57.4]} 107... Ke5 {[%clk 0:00:47.3]} 108. Kb5
{[%clk 0:00:58.3]} 108... Kf4 {[%clk 0:00:48]} 109. Kb6 {[%clk 0:00:59.2]}
109... Kg3 {[%clk 0:00:48.9]} 110. Ka6 {[%clk 0:01:00.1]} 110... f2 {[%clk
0:00:49.8]} 111. Ka7 {[%clk 0:01:01]} 111... Kf3 {[%clk 0:00:50.7]} 112. Kb7
{[%clk 0:01:01.9]} 112... Kg4 {[%clk 0:00:51.2]} 113. Ka8 {[%clk 0:01:02.8]}
113... Kh5 {[%clk 0:00:51.5]} 114. Ka7 {[%clk 0:01:03.7]} 114... e2 {[%clk
0:00:52.4]} 115. Kb7 {[%clk 0:01:04.6]} 115... Kg6 {[%clk 0:00:53.3]} 116. Kb6
{[%clk 0:01:05.5]} 116... d3 {[%clk 0:00:54.2]} 117. Ka6 {[%clk 0:01:06.4]}
117... Kg5 {[%clk 0:00:55.1]} 118. Ka7 {[%clk 0:01:07.3]} 118... Kh4 {[%clk
0:00:56]} 119. Kb7 {[%clk 0:01:08.2]} 119... Kh3 {[%clk 0:00:56.9]} 120. Ka8
{[%clk 0:01:09.1]} 120... Kh2 {[%clk 0:00:57.8]} 121. Ka7 {[%clk 0:01:10]}
121... Kg2 {[%clk 0:00:58.7]} 122. Kb7 {[%clk 0:01:10.9]} 122... Bd4 {[%clk
0:00:59.1]} 123. Ka6 {[%clk 0:01:11.8]} 123... Ba7 {[%clk 0:00:59.3]} 124. Ka5
{[%clk 0:01:11.4]} 124... Bb6+ {[%clk 0:00:59.3]} 125. Kb5 {[%clk 0:01:12.3]}
125... Rc2 {[%clk 0:00:59.3]} 126. Ka6 {[%clk 0:01:13.2]} 126... Kf1 {[%clk
0:00:58.9]} 127. Kb7 {[%clk 0:01:14.1]} 127... Ke1 {[%clk 0:00:59.5]} 128. Ka8
{[%clk 0:01:15]} 128... Kd2 {[%clk 0:01:00.2]} 129. Kb7 {[%clk 0:01:15.9]}
129... Ba7 {[%clk 0:01:00]} 130. Ka6 {[%clk 0:01:16.8]} 130... Rb2 {[%clk
0:01:00]} 131. Ka5 {[%clk 0:01:16.8]} 131... Bb6+ {[%clk 0:00:59.9]} 132. Ka6
{[%clk 0:01:17.3]} 132... Ba5 {[%clk 0:00:59.6]} 133. Ka7 {[%clk 0:01:17.5]}
133... Rb3 {[%clk 0:00:58.1]} 134. Ka6 {[%clk 0:01:18]} 134... Kc3 {[%clk
0:00:58.7]} 135. Ka7 {[%clk 0:01:18.4]} 135... d2 {[%clk 0:00:59.2]} 136. Ka6
{[%clk 0:01:19]} 136... Kc4 {[%clk 0:00:59.8]} 137. Ka7 {[%clk 0:01:19.5]}
137... Kc5 {[%clk 0:01:00.4]} 138. Ka6 {[%clk 0:01:20.2]} 138... Kc6 {[%clk
0:00:58.1]} 139. Ka7 {[%clk 0:01:20.7]} 139... Bc7 {[%clk 0:00:57.1]} 140. Ka6
{[%clk 0:01:21]} 140... Rb5 {[%clk 0:00:56.7]} 141. Ka7 {[%clk 0:01:21.3]}
141... Bb8+ {[%clk 0:00:57.3]} 142. Ka8 {[%clk 0:01:19.6]} 142... Ba7 {[%clk
0:00:58.2]} 143. Kxa7 {[%clk 0:01:19.6]} 143... Rb2 {[%clk 0:00:58.7]} 144. Ka6
{[%clk 0:01:19.9]} 144... d1=R {[%clk 0:00:57.5]} 145. Ka5 {[%clk 0:01:20.2]}
145... Rc1 {[%clk 0:00:56]} 146. Ka4 {[%clk 0:01:21.1]} 146... e1=R {[%clk
0:00:55.2]} 147. Ka3 {[%clk 0:01:22]} 147... Rbb1 {[%clk 0:00:55.2]} 148. Ka4
{[%clk 0:01:22.9]} 148... f1=R {[%clk 0:00:55]} 149. Ka5 {[%clk 0:01:23.8]}
149... Kc5 {[%clk 0:00:55.1]} 150. Ka6 {[%clk 0:01:24.7]} 150... Kc4 {[%clk
0:00:55.6]} 151. Ka7 {[%clk 0:01:25.6]} 151... Kc3 {[%clk 0:00:55.7]} 152. Ka8
{[%clk 0:01:26.5]} 152... Rf2 {[%clk 0:00:44.3]} 153. Ka7 {[%clk 0:01:27.4]}
153... Red1 {[%clk 0:00:44.3]} 154. Ka6 {[%clk 0:01:28.3]} 154... Rfb2 {[%clk
0:00:38.3]} 155. Ka5 {[%clk 0:01:29.2]} 155... Kb3 {[%clk 0:00:38.2]} 156. Kb5
{[%clk 0:01:28.8]} 156... Ka3+ {[%clk 0:00:35.4]} 157. Ka5 {[%clk 0:01:29.2]}
157... Ra2 {[%clk 0:00:35.1]} 158. Ka6 {[%clk 0:01:29.4]} 158... Kb2+ {[%clk
0:00:32.6]} 159. Kb5 {[%clk 0:01:29]} 159... Ka1# {[%clk 0:00:33.3]} 0-1

[Event "Early-Titled-Tuesday-Blitz-June-18-2024"]
[Site "Chess.com"]
[Date "2024.06.18"]
[Round "10"]
[White "carloseduar100"]
[Black "Smiechu"]
[Result "1-0"]
[WhiteElo "2267"]
[BlackElo "2327"]
[TimeControl "180+1"]
[EndTime "9:52:31 PDT"]
[Termination "carloseduar100 won by resignation"]

1. e4 {[%clk 0:03:00.9]} 1... c5 {[%clk 0:02:57]} 2. Nf3 {[%clk 0:03:00]} 2...
g6 {[%clk 0:02:56.8]} 3. Nc3 {[%clk 0:02:59.6]} 3... Nc6 {[%clk 0:02:56.3]} 4.
Bc4 {[%clk 0:02:59.1]} 4... Bg7 {[%clk 0:02:56.1]} 5. O-O {[%clk 0:02:59.4]}
5... d6 {[%clk 0:02:56.5]} 6. Re1 {[%clk 0:02:59.3]} 6... Nf6 {[%clk 0:02:56.9]}
7. h3 {[%clk 0:02:58.5]} 7... O-O {[%clk 0:02:56.9]} 8. d4 {[%clk 0:02:57.7]}
8... cxd4 {[%clk 0:02:56.7]} 9. Nxd4 {[%clk 0:02:58.6]} 9... Nxe4 {[%clk
0:02:54.5]} 10. Rxe4 {[%clk 0:02:50.5]} 10... d5 {[%clk 0:02:53.3]} 11. Bxd5
{[%clk 0:02:41.7]} 11... Nxd4 {[%clk 0:02:52.4]} 12. Rxd4 {[%clk 0:02:38.8]}
12... e6 {[%clk 0:02:48.4]} 13. Bxb7 {[%clk 0:02:29.5]} 13... Bxd4 {[%clk
0:02:44.7]} 14. Bxa8 {[%clk 0:02:27.4]} 14... Ba6 {[%clk 0:02:37.7]} 15. Bh6
{[%clk 0:02:21.7]} 15... Bxc3 {[%clk 0:02:32.3]} 16. Bxf8 {[%clk 0:02:18.4]}
16... Qxf8 {[%clk 0:02:32.1]} 17. bxc3 {[%clk 0:02:18.1]} 17... Qxa8 {[%clk
0:02:31.6]} 18. Rb1 {[%clk 0:02:15.3]} 18... Qe4 {[%clk 0:02:25.8]} 19. Rb8+
{[%clk 0:02:12.6]} 19... Kg7 {[%clk 0:02:25.3]} 20. Qd4+ {[%clk 0:02:13.3]}
20... Qxd4 {[%clk 0:02:21.3]} 21. cxd4 {[%clk 0:02:14.2]} 1-0

[Event "Early-Titled-Tuesday-Blitz-June-18-2024"]
[Site "Chess.com"]
[Date "2024.06.18"]
[Round "10"]
[White "DonCiao"]
[Black "dianamirza"]
[Result "1-0"]
[WhiteElo "2084"]
[BlackElo "1783"]
[TimeControl "180+1"]
[EndTime "9:52:44 PDT"]
[Termination "DonCiao won by checkmate"]

1. c4 {[%clk 0:02:55.8]} 1... c5 {[%clk 0:02:36.6]} 2. g3 {[%clk 0:02:55.2]}
2... Nc6 {[%clk 0:02:37.5]} 3. Bg2 {[%clk 0:02:54.5]} 3... g6 {[%clk 0:02:02]}
4. Nc3 {[%clk 0:02:51.9]} 4... Bg7 {[%clk 0:02:02.9]} 5. Nf3 {[%clk 0:02:50.8]}
5... e6 {[%clk 0:02:03.6]} 6. d3 {[%clk 0:02:46]} 6... Nge7 {[%clk 0:02:04.5]}
7. Bg5 {[%clk 0:02:44.8]} 7... O-O {[%clk 0:02:05.4]} 8. Qd2 {[%clk 0:02:43.4]}
8... d5 {[%clk 0:02:03.3]} 9. Bh6 {[%clk 0:02:42.9]} 9... d4 {[%clk 0:02:02.6]}
10. Ne4 {[%clk 0:02:40.3]} 10... b6 {[%clk 0:02:02]} 11. h4 {[%clk 0:02:34.9]}
11... Bb7 {[%clk 0:02:01.9]} 12. h5 {[%clk 0:02:33.4]} 12... Nf5 {[%clk
0:01:59.9]} 13. Bxg7 {[%clk 0:02:30.5]} 13... Nxg7 {[%clk 0:01:59]} 14. hxg6
{[%clk 0:02:30]} 14... fxg6 {[%clk 0:01:58.4]} 15. Qh6 {[%clk 0:02:28.8]} 15...
Kf7 {[%clk 0:01:56.5]} 16. Nfg5+ {[%clk 0:02:25.8]} 16... Ke8 {[%clk 0:01:51.6]}
17. Qxg7 {[%clk 0:02:23.8]} 17... Rf7 {[%clk 0:01:48.3]} 18. Qxf7# {[%clk
0:02:21.7]} 1-0

[Event "Early-Titled-Tuesday-Blitz-June-18-2024"]
[Site "Chess.com"]
[Date "2024.06.18"]
[Round "10"]
[White "Lady_Nika"]
[Black "Defenstrator"]
[Result "1-0"]
[WhiteElo "2522"]
[BlackElo "2387"]
[TimeControl "180+1"]
[EndTime "9:53:20 PDT"]
[Termination "Lady_Nika won by resignation"]

1. e4 {[%clk 0:03:00.9]} 1... d5 {[%clk 0:02:58.9]} 2. exd5 {[%clk 0:03:00.5]}
2... Qxd5 {[%clk 0:02:59.8]} 3. Nc3 {[%clk 0:03:00.9]} 3... Qd6 {[%clk
0:03:00.5]} 4. Nf3 {[%clk 0:03:01.3]} 4... e5 {[%clk 0:03:00.9]} 5. Be2 {[%clk
0:03:01.9]} 5... f5 {[%clk 0:02:53.8]} 6. d4 {[%clk 0:02:58.7]} 6... e4 {[%clk
0:02:52.6]} 7. Ne5 {[%clk 0:02:58.8]} 7... Nc6 {[%clk 0:02:31.4]} 8. Nb5 {[%clk
0:02:54.9]} 8... Qd8 {[%clk 0:02:23.5]} 9. Bf4 {[%clk 0:02:41.9]} 9... Nce7
{[%clk 0:01:58.8]} 10. Bc4 {[%clk 0:02:38]} 10... Ng6 {[%clk 0:01:43.4]} 11.
Bf7+ {[%clk 0:02:34.8]} 11... Ke7 {[%clk 0:01:43.3]} 12. Bxg6 {[%clk 0:02:29.9]}
12... hxg6 {[%clk 0:01:36.1]} 13. Nxg6+ {[%clk 0:02:29.9]} 13... Kf6 {[%clk
0:01:29.2]} 14. Nxh8 {[%clk 0:02:30]} 14... Bd6 {[%clk 0:01:05.7]} 15. Bg5+
{[%clk 0:02:29.8]} 1-0

[Event "Early-Titled-Tuesday-Blitz-June-18-2024"]
[Site "Chess.com"]
[Date "2024.06.18"]
[Round "10"]
[White "Fore_Man"]
[Black "milovichalex"]
[Result "0-1"]
[WhiteElo "2174"]
[BlackElo "2387"]
[TimeControl "180+1"]
[EndTime "9:53:21 PDT"]
[Termination "milovichalex won by resignation"]

1. Nf3 {[%clk 0:02:26.1]} 1... Nf6 {[%clk 0:02:58.2]} 2. g3 {[%clk 0:02:26.6]}
2... d5 {[%clk 0:02:58.6]} 3. Bg2 {[%clk 0:02:27.2]} 3... c6 {[%clk 0:02:59.4]}
4. O-O {[%clk 0:02:27.8]} 4... Bg4 {[%clk 0:02:59.6]} 5. d4 {[%clk 0:02:28.2]}
5... Nbd7 {[%clk 0:03:00]} 6. Nbd2 {[%clk 0:02:28.6]} 6... e6 {[%clk 0:02:59.4]}
7. c4 {[%clk 0:02:28.9]} 7... Be7 {[%clk 0:02:59.4]} 8. b3 {[%clk 0:02:28.5]}
8... O-O {[%clk 0:02:59.7]} 9. Bb2 {[%clk 0:02:29.3]} 9... Re8 {[%clk
0:02:59.4]} 10. Ne5 {[%clk 0:02:29.7]} 10... Nxe5 {[%clk 0:02:59.2]} 11. dxe5
{[%clk 0:02:30.6]} 11... Nd7 {[%clk 0:02:59.8]} 12. cxd5 {[%clk 0:02:31]} 12...
exd5 {[%clk 0:02:59.6]} 13. h3 {[%clk 0:02:31.5]} 13... Be6 {[%clk 0:02:59.4]}
14. e4 {[%clk 0:02:31]} 14... dxe4 {[%clk 0:02:59.1]} 15. Nxe4 {[%clk
0:02:31.9]} 15... Qc7 {[%clk 0:02:58.1]} 16. f4 {[%clk 0:02:30.1]} 16... Bd5
{[%clk 0:02:57.5]} 17. Rc1 {[%clk 0:02:28.2]} 17... Qb6+ {[%clk 0:02:56.4]} 18.
Bd4 {[%clk 0:02:27.3]} 18... Qa6 {[%clk 0:02:55.9]} 19. Qc2 {[%clk 0:02:18.9]}
19... Nf8 {[%clk 0:02:46.9]} 20. Nc5 {[%clk 0:02:17.9]} 20... Bxc5 {[%clk
0:02:43.5]} 21. Bxc5 {[%clk 0:02:16]} 21... Bxg2 {[%clk 0:02:43.3]} 22. Kxg2
{[%clk 0:02:16.9]} 22... Ne6 {[%clk 0:02:43.3]} 23. Bd6 {[%clk 0:02:17.5]} 23...
g6 {[%clk 0:02:41.9]} 24. g4 {[%clk 0:02:11.5]} 24... Nd4 {[%clk 0:02:35.1]} 25.
Qd2 {[%clk 0:02:01.5]} 25... Nb5 {[%clk 0:02:31.1]} 26. f5 {[%clk 0:01:59.3]}
26... Nxd6 {[%clk 0:02:28.5]} 27. exd6 {[%clk 0:01:33.1]} 27... Re2+ {[%clk
0:02:25.6]} 0-1

[Event "Early-Titled-Tuesday-Blitz-June-18-2024"]
[Site "Chess.com"]
[Date "2024.06.18"]
[Round "10"]
[White "Rosh1610"]
[Black "gpsji27"]
[Result "1-0"]
[WhiteElo "2484"]
[BlackElo "2338"]
[TimeControl "180+1"]
[EndTime "9:53:49 PDT"]
[Termination "Rosh1610 won by resignation"]

1. e4 {[%clk 0:02:44.7]} 1... e5 {[%clk 0:02:59.4]} 2. Nf3 {[%clk 0:02:44.6]}
2... Nc6 {[%clk 0:02:59.9]} 3. Bb5 {[%clk 0:02:44.4]} 3... a6 {[%clk 0:03:00.1]}
4. Ba4 {[%clk 0:02:44.5]} 4... Nf6 {[%clk 0:02:59.1]} 5. O-O {[%clk 0:02:44.5]}
5... Be7 {[%clk 0:02:59.3]} 6. Re1 {[%clk 0:02:44.9]} 6... O-O {[%clk
0:02:56.2]} 7. Bxc6 {[%clk 0:02:45.2]} 7... dxc6 {[%clk 0:02:52.2]} 8. Nxe5
{[%clk 0:02:45.8]} 8... Bc5 {[%clk 0:02:32]} 9. c3 {[%clk 0:02:43.1]} 9... Re8
{[%clk 0:02:32.2]} 10. d4 {[%clk 0:02:41.9]} 10... Bb6 {[%clk 0:02:32.7]} 11.
Bg5 {[%clk 0:02:37.8]} 11... h6 {[%clk 0:02:32.2]} 12. Bh4 {[%clk 0:02:37.8]}
12... g5 {[%clk 0:02:32.4]} 13. Bg3 {[%clk 0:02:38]} 13... Be6 {[%clk
0:02:29.5]} 14. Nd2 {[%clk 0:02:37.5]} 14... c5 {[%clk 0:02:29.1]} 15. d5 {[%clk
0:02:37.4]} 15... Bd7 {[%clk 0:02:24.4]} 16. Ndc4 {[%clk 0:02:37.9]} 16... Bb5
{[%clk 0:02:23.8]} 17. Nxb6 {[%clk 0:02:36.2]} 17... cxb6 {[%clk 0:02:24.7]} 18.
c4 {[%clk 0:02:36.5]} 18... Bd7 {[%clk 0:02:24.2]} 19. f3 {[%clk 0:02:34.9]}
19... Nh5 {[%clk 0:02:22.7]} 20. Nd3 {[%clk 0:02:34.2]} 20... Nxg3 {[%clk
0:02:21.4]} 21. hxg3 {[%clk 0:02:35.1]} 21... Qf6 {[%clk 0:02:20.9]} 22. e5
{[%clk 0:02:32.6]} 22... Qg6 {[%clk 0:02:21.4]} 23. Nf2 {[%clk 0:02:28.8]} 23...
Bf5 {[%clk 0:02:21.5]} 24. g4 {[%clk 0:02:28.3]} 24... Bc2 {[%clk 0:02:19.8]}
25. Qd2 {[%clk 0:02:27.6]} 25... Ba4 {[%clk 0:02:20.1]} 26. Ne4 {[%clk
0:02:26.7]} 26... Rxe5 {[%clk 0:02:20.1]} 27. Qc3 {[%clk 0:02:23.6]} 27... Rae8
{[%clk 0:02:18.1]} 28. b3 {[%clk 0:02:23.3]} 28... Bd7 {[%clk 0:02:18.1]} 29.
Nf2 {[%clk 0:02:16.9]} 29... Qf6 {[%clk 0:02:08.4]} 30. Rxe5 {[%clk 0:02:16.4]}
30... Qxe5 {[%clk 0:02:06.7]} 31. Qxe5 {[%clk 0:02:16.9]} 31... Rxe5 {[%clk
0:02:07.6]} 32. Kf1 {[%clk 0:02:16.5]} 32... b5 {[%clk 0:02:06.7]} 33. Nd3
{[%clk 0:02:15]} 33... Re3 {[%clk 0:02:05.9]} 34. Nxc5 {[%clk 0:02:14.9]} 34...
Bc8 {[%clk 0:02:02.9]} 35. d6 {[%clk 0:02:14.4]} 35... bxc4 {[%clk 0:01:48]} 36.
bxc4 {[%clk 0:02:15.3]} 36... b6 {[%clk 0:01:47.4]} 37. d7 {[%clk 0:02:14.2]}
37... Bxd7 {[%clk 0:01:45]} 38. Nxd7 {[%clk 0:02:15.1]} 1-0

[Event "Early-Titled-Tuesday-Blitz-June-18-2024"]
[Site "Chess.com"]
[Date "2024.06.18"]
[Round "10"]
[White "Attacker_2006"]
[Black "alexrustemov"]
[Result "0-1"]
[WhiteElo "2527"]
[BlackElo "2866"]
[TimeControl "180+1"]
[EndTime "9:54:00 PDT"]
[Termination "alexrustemov won by resignation"]

1. e4 {[%clk 0:02:58.9]} 1... e6 {[%clk 0:02:59.9]} 2. d4 {[%clk 0:02:58.8]}
2... d5 {[%clk 0:03:00.3]} 3. Nc3 {[%clk 0:02:57.2]} 3... dxe4 {[%clk
0:03:00.3]} 4. Nxe4 {[%clk 0:02:57.3]} 4... Bd7 {[%clk 0:03:00.7]} 5. Nf3 {[%clk
0:02:57.1]} 5... Bc6 {[%clk 0:03:01]} 6. Bd3 {[%clk 0:02:57.7]} 6... Nd7 {[%clk
0:03:01.2]} 7. Qe2 {[%clk 0:02:57]} 7... Ngf6 {[%clk 0:03:01.4]} 8. Bg5 {[%clk
0:02:57.3]} 8... Be7 {[%clk 0:03:00.9]} 9. Nxf6+ {[%clk 0:02:56.9]} 9... Bxf6
{[%clk 0:03:00.6]} 10. Bxf6 {[%clk 0:02:56.9]} 10... Qxf6 {[%clk 0:03:00.4]} 11.
Be4 {[%clk 0:02:55.5]} 11... Bxe4 {[%clk 0:02:57.4]} 12. Qxe4 {[%clk 0:02:56.2]}
12... c6 {[%clk 0:02:55.2]} 13. O-O {[%clk 0:02:55.9]} 13... Qg6 {[%clk
0:02:53.5]} 14. Rfe1 {[%clk 0:02:52.8]} 14... Qxe4 {[%clk 0:02:52.1]} 15. Rxe4
{[%clk 0:02:53.7]} 15... O-O {[%clk 0:02:50.9]} 16. c4 {[%clk 0:02:53.5]} 16...
Rfd8 {[%clk 0:02:49.6]} 17. Rd1 {[%clk 0:02:53.7]} 17... Kf8 {[%clk 0:02:41.5]}
18. Re2 {[%clk 0:02:46.4]} 18... Nf6 {[%clk 0:02:34]} 19. Red2 {[%clk
0:02:43.1]} 19... Rd6 {[%clk 0:02:28.6]} 20. b3 {[%clk 0:02:42.9]} 20... Rad8
{[%clk 0:02:27.9]} 21. Kf1 {[%clk 0:02:37.1]} 21... Ke7 {[%clk 0:02:24.1]} 22.
Rd3 {[%clk 0:02:27.2]} 22... a5 {[%clk 0:02:17.4]} 23. Ne1 {[%clk 0:02:20]}
23... a4 {[%clk 0:02:14.4]} 24. f3 {[%clk 0:02:16.8]} 24... Ra8 {[%clk
0:02:09.3]} 25. b4 {[%clk 0:02:13.1]} 25... b5 {[%clk 0:02:08.6]} 26. cxb5
{[%clk 0:02:06.1]} 26... cxb5 {[%clk 0:02:08.4]} 27. Rc1 {[%clk 0:02:05.9]}
27... Nd5 {[%clk 0:02:07.6]} 28. a3 {[%clk 0:02:04.7]} 28... Nf4 {[%clk
0:01:49]} 29. Rdd1 {[%clk 0:02:00.6]} 29... Rad8 {[%clk 0:01:48.1]} 30. g3
{[%clk 0:01:54.5]} 30... Nd5 {[%clk 0:01:46.1]} 31. Rc5 {[%clk 0:01:54.1]} 31...
Ne3+ {[%clk 0:01:39.7]} 0-1